[Event "Titled Tuesday Blitz March 07 Early 2023"]
[White "Sargissyan, Sargis"]
[Black "Vanek, Tomas"]
[WhiteFideId "13303210"]
[BlackFideId "313459"]
[WhiteElo "2109"]
[BlackElo "2052"]
[Result "1-0"]
[Round "04"]
[TimeControl "180+2"]
[Date "2023.03.07"]
[WhiteClock "0:00:10"]
[BlackClock "0:00:14"]

1. c4 {[%clk 0:03:00]}  f5 {[%clk 0:02:59]} 2. Nc3 {[%clk 0:03:00]}  Nf6 {[%clk 0:02:58]} 3. d4 {[%clk 0:02:56]}  g6 {[%clk 0:02:57]} 4. g3 {[%clk 0:02:47]}  Bg7 {[%clk 0:02:51]} 5. Bg2 {[%clk 0:02:48]}  d6 {[%clk 0:02:42]} 6. Nf3 {[%clk 0:02:47]}  Nc6 {[%clk 0:02:39]} 7. O-O {[%clk 0:02:44]}  O-O {[%clk 0:02:38]} 8. d5 {[%clk 0:02:39]}  Na5 {[%clk 0:02:37]} 9. Nd2 {[%clk 0:02:38]}  e5 {[%clk 0:02:25]} 10. b4 {[%clk 0:02:34]}  e4 {[%clk 0:02:17]} 11. bxa5 {[%clk 0:02:33]}  Nxd5 {[%clk 0:02:17]} 12. cxd5 {[%clk 0:02:30]}  Bxc3 {[%clk 0:02:16]} 13. Rb1 {[%clk 0:02:30]}  Qf6 {[%clk 0:02:03]} 14. Nc4 {[%clk 0:02:25]}  Rb8 {[%clk 0:02:01]} 15. Qc2 {[%clk 0:02:19]}  b5 {[%clk 0:02:00]} 16. axb6 {[%clk 0:02:16]}  cxb6 {[%clk 0:01:59]} 17. Nxd6 {[%clk 0:01:57]}  Ba6 {[%clk 0:01:56]} 18. Nb5 {[%clk 0:01:47]}  Be5 {[%clk 0:01:46]} 19. f4 {[%clk 0:01:29]}  Bd4+ {[%clk 0:01:38]} 20. Nxd4 {[%clk 0:01:16]}  Qxd4+ {[%clk 0:01:38]} 21. Kh1 {[%clk 0:01:17]}  Rbc8 {[%clk 0:01:31]} 22. Qb2 {[%clk 0:01:02]}  Qxd5 {[%clk 0:01:25]} 23. Be3 {[%clk 0:00:55]}  Rfd8 {[%clk 0:01:16]} 24. Rbc1 {[%clk 0:00:49]}  Rxc1 {[%clk 0:01:14]} 25. Rxc1 {[%clk 0:00:48]}  Bc4 {[%clk 0:01:09]} 26. a3 {[%clk 0:00:34]}  Kf7 {[%clk 0:01:04]} 27. Bf1 {[%clk 0:00:29]}  b5 {[%clk 0:00:56]} 28. Qb4 {[%clk 0:00:25]}  a6 {[%clk 0:00:50]} 29. h4 {[%clk 0:00:24]}  Rd7 {[%clk 0:00:43]} 30. a4 {[%clk 0:00:24]}  Rd8 {[%clk 0:00:38]} 31. axb5 {[%clk 0:00:24]}  axb5 {[%clk 0:00:38]} 32. Ra1 {[%clk 0:00:24]}  Rd7 {[%clk 0:00:38]} 33. Kg2 {[%clk 0:00:19]}  h6 {[%clk 0:00:37]} 34. Kf2 {[%clk 0:00:19]}  Qd6 {[%clk 0:00:29]} 35. Bc5 {[%clk 0:00:14]}  Qd5 {[%clk 0:00:29]} 36. Ra6 {[%clk 0:00:13]}  e3+ {[%clk 0:00:28]} 37. Bxe3 {[%clk 0:00:13]}  Qh1 {[%clk 0:00:27]} 38. Qc3 {[%clk 0:00:12]}  Qd5 {[%clk 0:00:15]} 39. Qf6+ {[%clk 0:00:11]}  Ke8 {[%clk 0:00:15]} 40. Re6+ {[%clk 0:00:11]}  Re7 {[%clk 0:00:14]} 41. Qxe7# {[%clk 0:00:10]} 1-0


[Site "https://www.chess.com"]

[Event "Titled Tuesday Blitz March 07 Early 2023"]
[White "Vaglio Mattey, Emanuel"]
[Black "Nan, M K Khine Hlyan"]
[WhiteFideId "6504167"]
[BlackFideId "13002899"]
[WhiteElo "2266"]
[BlackElo "1943"]
[Result "1-0"]
[Round "04"]
[TimeControl "180+2"]
[Date "2023.03.07"]
[WhiteClock "0:00:10"]
[BlackClock "0:00:13"]

1. d4 {[%clk 0:02:56]}  Nf6 {[%clk 0:02:58]} 2. Nf3 {[%clk 0:02:55]}  g6 {[%clk 0:02:55]} 3. Bg5 {[%clk 0:02:56]}  Bg7 {[%clk 0:02:54]} 4. Nbd2 {[%clk 0:02:56]}  h6 {[%clk 0:02:54]} 5. Bh4 {[%clk 0:02:55]}  d6 {[%clk 0:02:53]} 6. e4 {[%clk 0:02:55]}  Bg4 {[%clk 0:02:48]} 7. h3 {[%clk 0:02:53]}  Bxf3 {[%clk 0:02:44]} 8. Qxf3 {[%clk 0:02:54]}  Nbd7 {[%clk 0:02:39]} 9. Bc4 {[%clk 0:02:49]}  c5 {[%clk 0:02:37]} 10. c3 {[%clk 0:02:44]}  cxd4 {[%clk 0:02:36]} 11. cxd4 {[%clk 0:02:45]}  e5 {[%clk 0:02:36]} 12. dxe5 {[%clk 0:02:36]}  Nxe5 {[%clk 0:02:35]} 13. Bb5+ {[%clk 0:02:36]}  Nfd7 {[%clk 0:02:15]} 14. Bxd8 {[%clk 0:02:04]}  Nxf3+ {[%clk 0:02:11]} 15. Nxf3 {[%clk 0:02:00]}  Rxd8 {[%clk 0:02:04]} 16. O-O-O {[%clk 0:01:59]}  O-O {[%clk 0:01:59]} 17. Rxd6 {[%clk 0:01:56]}  Rc8+ {[%clk 0:01:54]} 18. Kb1 {[%clk 0:01:56]}  Nc5 {[%clk 0:01:50]} 19. Re1 {[%clk 0:01:45]}  a6 {[%clk 0:01:48]} 20. Bd3 {[%clk 0:01:35]}  Na4 {[%clk 0:01:33]} 21. e5 {[%clk 0:01:30]}  Rfd8 {[%clk 0:01:25]} 22. Rxd8+ {[%clk 0:01:27]}  Rxd8 {[%clk 0:01:24]} 23. Bc2 {[%clk 0:01:26]}  Nc5 {[%clk 0:01:22]} 24. b4 {[%clk 0:01:23]}  Ne6 {[%clk 0:01:18]} 25. Be4 {[%clk 0:01:04]}  Nf4 {[%clk 0:01:06]} 26. Bxb7 {[%clk 0:00:50]}  Rb8 {[%clk 0:01:03]} 27. Bxa6 {[%clk 0:00:48]}  Rxb4+ {[%clk 0:01:03]} 28. Ka1 {[%clk 0:00:19]}  Nxg2 {[%clk 0:00:48]} 29. Rd1 {[%clk 0:00:18]}  Nh4 {[%clk 0:00:43]} 30. a3 {[%clk 0:00:14]}  Ra4 {[%clk 0:00:39]} 31. Nxh4 {[%clk 0:00:14]}  Rxa3+ {[%clk 0:00:39]} 32. Kb2 {[%clk 0:00:15]}  Rxa6 {[%clk 0:00:39]} 33. f4 {[%clk 0:00:15]}  g5 {[%clk 0:00:37]} 34. Nf5 {[%clk 0:00:16]}  gxf4 {[%clk 0:00:35]} 35. Rg1 {[%clk 0:00:16]}  Rg6 {[%clk 0:00:32]} 36. Ne7+ {[%clk 0:00:17]}  Kh7 {[%clk 0:00:31]} 37. Nxg6 {[%clk 0:00:18]}  fxg6 {[%clk 0:00:30]} 38. Kc3 {[%clk 0:00:18]}  Bxe5+ {[%clk 0:00:30]} 39. Kd3 {[%clk 0:00:19]}  g5 {[%clk 0:00:29]} 40. Ke4 {[%clk 0:00:19]}  Bc3 {[%clk 0:00:29]} 41. Kf5 {[%clk 0:00:20]}  Bd4 {[%clk 0:00:25]} 42. Rd1 {[%clk 0:00:19]}  Be3 {[%clk 0:00:24]} 43. Rd7+ {[%clk 0:00:20]}  Kg8 {[%clk 0:00:23]} 44. Kg6 {[%clk 0:00:14]}  Kf8 {[%clk 0:00:23]} 45. Rf7+ {[%clk 0:00:13]}  Ke8 {[%clk 0:00:23]} 46. Rf5 {[%clk 0:00:13]}  Ke7 {[%clk 0:00:22]} 47. Kxh6 {[%clk 0:00:13]}  Ke6 {[%clk 0:00:22]} 48. Rf8 {[%clk 0:00:13]}  Ke5 {[%clk 0:00:21]} 49. Kh5 {[%clk 0:00:13]}  Ke4 {[%clk 0:00:19]} 50. Kg4 {[%clk 0:00:13]}  Bd4 {[%clk 0:00:17]} 51. Rf5 {[%clk 0:00:12]}  Be3 {[%clk 0:00:16]} 52. Rf7 {[%clk 0:00:09]}  Kd3 {[%clk 0:00:15]} 53. Kf3 {[%clk 0:00:09]}  Kd4 {[%clk 0:00:14]} 54. Rf5 {[%clk 0:00:09]}  Kd3 {[%clk 0:00:14]} 55. Rxg5 {[%clk 0:00:09]}  Kd2 {[%clk 0:00:13]} 56. h4 {[%clk 0:00:10]} 1-0


[Site "https://www.chess.com"]

[Event "Titled Tuesday Blitz March 07 Early 2023"]
[White "Lohani, Sujana"]
[Black "Kumaran, B"]
[WhiteFideId "12311987"]
[BlackFideId "5038472"]
[WhiteElo "1718"]
[BlackElo "2198"]
[Result "0-1"]
[Round "04"]
[TimeControl "180+2"]
[Date "2023.03.07"]
[WhiteClock "0:00:06"]
[BlackClock "0:00:36"]

1. d4 {[%clk 0:02:51]}  Nf6 {[%clk 0:02:58]} 2. Nf3 {[%clk 0:02:52]}  e6 {[%clk 0:02:58]} 3. c4 {[%clk 0:02:52]}  b6 {[%clk 0:02:56]} 4. g3 {[%clk 0:02:52]}  Ba6 {[%clk 0:02:57]} 5. Nbd2 {[%clk 0:02:50]}  Bb4 {[%clk 0:02:50]} 6. Qc2 {[%clk 0:02:46]}  O-O {[%clk 0:02:49]} 7. Bg2 {[%clk 0:02:45]}  d5 {[%clk 0:02:48]} 8. cxd5 {[%clk 0:02:41]}  exd5 {[%clk 0:02:46]} 9. a3 {[%clk 0:02:38]}  Bd6 {[%clk 0:02:40]} 10. e3 {[%clk 0:02:23]}  c5 {[%clk 0:02:36]} 11. dxc5 {[%clk 0:02:17]}  bxc5 {[%clk 0:02:33]} 12. Nb1 {[%clk 0:01:46]}  Nc6 {[%clk 0:02:20]} 13. Nc3 {[%clk 0:01:45]}  d4 {[%clk 0:02:19]} 14. Na4 {[%clk 0:01:38]}  Re8 {[%clk 0:02:09]} 15. Nxc5 {[%clk 0:01:34]}  Qa5+ {[%clk 0:02:06]} 16. b4 {[%clk 0:01:21]}  Nxb4 {[%clk 0:02:05]} 17. axb4 {[%clk 0:01:19]}  Qxa1 {[%clk 0:02:04]} 18. Nxd4 {[%clk 0:01:05]}  Qxd4 {[%clk 0:01:36]} 19. Nxa6 {[%clk 0:01:00]}  Rad8 {[%clk 0:01:05]} 20. O-O {[%clk 0:00:57]}  Qb6 {[%clk 0:01:04]} 21. Qa4 {[%clk 0:00:41]}  h5 {[%clk 0:00:58]} 22. Bb2 {[%clk 0:00:33]}  Ng4 {[%clk 0:00:55]} 23. b5 {[%clk 0:00:19]}  Be5 {[%clk 0:00:48]} 24. Bxe5 {[%clk 0:00:17]}  Rxe5 {[%clk 0:00:46]} 25. Nb4 {[%clk 0:00:15]}  Qxb5 {[%clk 0:00:43]} 26. Qxb5 {[%clk 0:00:14]}  Rxb5 {[%clk 0:00:42]} 27. Nc6 {[%clk 0:00:14]}  Rd7 {[%clk 0:00:43]} 28. Ra1 {[%clk 0:00:13]}  Rb2 {[%clk 0:00:41]} 29. Nxa7 {[%clk 0:00:09]}  Rxf2 {[%clk 0:00:39]} 30. h3 {[%clk 0:00:09]}  Rdd2 {[%clk 0:00:38]} 31. hxg4 {[%clk 0:00:08]}  Rxg2+ {[%clk 0:00:38]} 32. Kf1 {[%clk 0:00:08]}  Rh2 {[%clk 0:00:37]} 33. Ke1 {[%clk 0:00:07]}  Rb2 {[%clk 0:00:36]} 34. Rd1 {[%clk 0:00:06]}  Rh1# {[%clk 0:00:36]} 0-1


[Site "https://www.chess.com"]

[Event "Titled Tuesday Blitz March 07 Early 2023"]
[White "Qashashvili, Alexandre"]
[Black "Hoffmann, Asa"]
[WhiteFideId "13600842"]
[BlackFideId "2001470"]
[WhiteElo "2405"]
[BlackElo "2117"]
[Result "0-1"]
[Round "04"]
[TimeControl "180+2"]
[Date "2023.03.07"]
[WhiteClock "0:00:02"]
[BlackClock "0:01:12"]

1. e4 {[%clk 0:03:00]}  d6 {[%clk 0:02:56]} 2. Nc3 {[%clk 0:03:00]}  c6 {[%clk 0:02:54]} 3. Nf3 {[%clk 0:03:01]}  Bg4 {[%clk 0:02:53]} 4. Be2 {[%clk 0:03:00]}  e6 {[%clk 0:02:52]} 5. h3 {[%clk 0:03:00]}  Bh5 {[%clk 0:02:52]} 6. d4 {[%clk 0:03:00]}  d5 {[%clk 0:02:52]} 7. exd5 {[%clk 0:02:59]}  cxd5 {[%clk 0:02:51]} 8. Bf4 {[%clk 0:03:00]}  Nc6 {[%clk 0:02:51]} 9. Ne5 {[%clk 0:02:59]}  Bxe2 {[%clk 0:02:48]} 10. Nxe2 {[%clk 0:02:59]}  Nf6 {[%clk 0:02:45]} 11. Nxc6 {[%clk 0:02:58]}  bxc6 {[%clk 0:02:44]} 12. c3 {[%clk 0:02:58]}  Bd6 {[%clk 0:02:44]} 13. Bxd6 {[%clk 0:02:58]}  Qxd6 {[%clk 0:02:43]} 14. O-O {[%clk 0:02:58]}  O-O {[%clk 0:02:42]} 15. Qd2 {[%clk 0:02:59]}  c5 {[%clk 0:02:42]} 16. dxc5 {[%clk 0:02:58]}  Qxc5 {[%clk 0:02:41]} 17. Qd4 {[%clk 0:02:59]}  Rfc8 {[%clk 0:02:40]} 18. Qxc5 {[%clk 0:02:57]}  Rxc5 {[%clk 0:02:39]} 19. Nd4 {[%clk 0:02:57]}  a5 {[%clk 0:02:38]} 20. Rfe1 {[%clk 0:02:51]}  Rb8 {[%clk 0:02:37]} 21. Re2 {[%clk 0:02:49]}  a4 {[%clk 0:02:34]} 22. a3 {[%clk 0:02:48]}  Ne4 {[%clk 0:02:33]} 23. Rc1 {[%clk 0:02:45]}  g6 {[%clk 0:02:30]} 24. f3 {[%clk 0:02:44]}  Nd6 {[%clk 0:02:29]} 25. Rcc2 {[%clk 0:02:41]}  Nc4 {[%clk 0:02:28]} 26. Kf2 {[%clk 0:02:40]}  e5 {[%clk 0:02:22]} 27. Kg3 {[%clk 0:01:31]}  exd4 {[%clk 0:02:22]} 28. cxd4 {[%clk 0:01:32]}  Rcb5 {[%clk 0:02:22]} 29. Re7 {[%clk 0:01:25]}  Rxb2 {[%clk 0:02:20]} 30. Rc1 {[%clk 0:01:20]}  Rd2 {[%clk 0:02:17]} 31. Ra7 {[%clk 0:01:17]}  Nxa3 {[%clk 0:02:04]} 32. Rxa4 {[%clk 0:01:13]}  Nc4 {[%clk 0:02:04]} 33. h4 {[%clk 0:01:06]}  Rxd4 {[%clk 0:02:01]} 34. h5 {[%clk 0:01:02]}  gxh5 {[%clk 0:02:01]} 35. Rh1 {[%clk 0:00:56]}  h4+ {[%clk 0:01:59]} 36. Rxh4 {[%clk 0:00:50]}  Rxh4 {[%clk 0:01:58]} 37. Kxh4 {[%clk 0:00:51]}  Rd8 {[%clk 0:01:55]} 38. Kg3 {[%clk 0:00:47]}  Ne3 {[%clk 0:01:52]} 39. Kf2 {[%clk 0:00:35]}  d4 {[%clk 0:01:51]} 40. Ke2 {[%clk 0:00:33]}  Nxg2 {[%clk 0:01:50]} 41. Kd2 {[%clk 0:00:29]}  h5 {[%clk 0:01:48]} 42. Ra5 {[%clk 0:00:24]}  h4 {[%clk 0:01:45]} 43. Rg5+ {[%clk 0:00:23]}  Kh7 {[%clk 0:01:42]} 44. Rxg2 {[%clk 0:00:20]}  Kh6 {[%clk 0:01:41]} 45. Kd3 {[%clk 0:00:15]}  Kh5 {[%clk 0:01:40]} 46. Rg7 {[%clk 0:00:13]}  f5 {[%clk 0:01:36]} 47. Kd2 {[%clk 0:00:03]}  Rd6 {[%clk 0:01:25]} 48. Kd3 {[%clk 0:00:03]}  Kh6 {[%clk 0:01:20]} 49. Rg8 {[%clk 0:00:02]}  Rd7 {[%clk 0:01:12]} 0-1


[Site "https://www.chess.com"]

[Event "Titled Tuesday Blitz March 07 Early 2023"]
[White "Benaddi, Mouhcine"]
[Black "Theytookourjobs"]
[WhiteFideId "9001050"]
[WhiteElo "2036"]
[BlackElo "2251"]
[Result "1-0"]
[Round "04"]
[TimeControl "180+2"]
[Date "2023.03.07"]
[WhiteClock "0:00:55"]
[BlackClock "0:00:16"]

1. Nf3 {[%clk 0:03:00]}  f5 {[%clk 0:02:58]} 2. g3 {[%clk 0:03:00]}  Nf6 {[%clk 0:02:59]} 3. Bg2 {[%clk 0:02:56]}  d6 {[%clk 0:02:59]} 4. O-O {[%clk 0:02:57]}  e5 {[%clk 0:02:59]} 5. d3 {[%clk 0:02:56]}  Be7 {[%clk 0:02:59]} 6. c4 {[%clk 0:02:56]}  O-O {[%clk 0:03:00]} 7. Nc3 {[%clk 0:02:54]}  c6 {[%clk 0:03:00]} 8. Rb1 {[%clk 0:02:53]}  a5 {[%clk 0:03:00]} 9. a3 {[%clk 0:02:53]}  Na6 {[%clk 0:03:00]} 10. b4 {[%clk 0:02:53]}  axb4 {[%clk 0:03:00]} 11. axb4 {[%clk 0:02:53]}  Nc7 {[%clk 0:03:01]} 12. b5 {[%clk 0:02:53]}  Bd7 {[%clk 0:03:00]} 13. bxc6 {[%clk 0:02:52]}  bxc6 {[%clk 0:03:01]} 14. Rb7 {[%clk 0:02:37]}  Ne6 {[%clk 0:03:01]} 15. Bd2 {[%clk 0:02:22]}  Nc5 {[%clk 0:02:51]} 16. Rb2 {[%clk 0:02:20]}  Qc7 {[%clk 0:02:51]} 17. Qb1 {[%clk 0:02:17]}  Rfb8 {[%clk 0:02:49]} 18. d4 {[%clk 0:02:12]}  Rxb2 {[%clk 0:02:27]} 19. Qxb2 {[%clk 0:02:13]}  Nce4 {[%clk 0:01:59]} 20. dxe5 {[%clk 0:02:09]}  dxe5 {[%clk 0:01:57]} 21. Nxe4 {[%clk 0:02:04]}  Nxe4 {[%clk 0:01:56]} 22. Be3 {[%clk 0:01:54]}  Bf6 {[%clk 0:01:48]} 23. c5 {[%clk 0:01:47]}  Be6 {[%clk 0:01:26]} 24. Qb6 {[%clk 0:01:43]}  Rc8 {[%clk 0:01:05]} 25. Rb1 {[%clk 0:01:27]}  Nc3 {[%clk 0:00:49]} 26. Qxc7 {[%clk 0:01:24]}  Rxc7 {[%clk 0:00:46]} 27. Rb8+ {[%clk 0:01:24]}  Kf7 {[%clk 0:00:47]} 28. Kf1 {[%clk 0:01:20]}  Bc4 {[%clk 0:00:44]} 29. Ng1 {[%clk 0:01:12]}  Bd5 {[%clk 0:00:36]} 30. Bd2 {[%clk 0:01:08]}  Bxg2+ {[%clk 0:00:35]} 31. Kxg2 {[%clk 0:01:08]}  e4 {[%clk 0:00:32]} 32. Bf4 {[%clk 0:01:01]}  Re7 {[%clk 0:00:23]} 33. Rc8 {[%clk 0:01:00]}  Re6 {[%clk 0:00:22]} 34. Rc7+ {[%clk 0:00:59]}  Kg6 {[%clk 0:00:18]} 35. Nh3 {[%clk 0:00:58]}  Nxe2 {[%clk 0:00:16]} 36. Kf1 {[%clk 0:00:56]}  Nxf4 {[%clk 0:00:16]} 37. Nxf4+ {[%clk 0:00:55]} 1-0


[Site "https://www.chess.com"]

[Event "Titled Tuesday Blitz March 07 Early 2023"]
[White "Mayaud, Raphael"]
[Black "Grabinsky, Vladimir"]
[WhiteFideId "627151"]
[BlackFideId "14107074"]
[WhiteElo "2191"]
[BlackElo "2027"]
[Result "1/2-1/2"]
[Round "04"]
[TimeControl "180+2"]
[Date "2023.03.07"]
[WhiteClock "0:00:53"]
[BlackClock "0:00:47"]

1. d4 {[%clk 0:03:00]}  Nf6 {[%clk 0:02:58]} 2. Bg5 {[%clk 0:03:00]}  Ne4 {[%clk 0:02:54]} 3. Bf4 {[%clk 0:03:00]}  c5 {[%clk 0:02:54]} 4. f3 {[%clk 0:03:00]}  Nf6 {[%clk 0:02:45]} 5. dxc5 {[%clk 0:02:59]}  e6 {[%clk 0:02:38]} 6. Bd6 {[%clk 0:02:52]}  Na6 {[%clk 0:02:35]} 7. Bxf8 {[%clk 0:02:47]}  Rxf8 {[%clk 0:02:28]} 8. e4 {[%clk 0:02:34]}  Nxc5 {[%clk 0:02:27]} 9. Nc3 {[%clk 0:02:33]}  d5 {[%clk 0:02:20]} 10. Bb5+ {[%clk 0:02:27]}  Bd7 {[%clk 0:02:19]} 11. Bxd7+ {[%clk 0:02:26]}  Qxd7 {[%clk 0:02:18]} 12. Qd4 {[%clk 0:01:52]}  Rc8 {[%clk 0:02:08]} 13. exd5 {[%clk 0:01:45]}  Nxd5 {[%clk 0:02:00]} 14. Nxd5 {[%clk 0:01:31]}  Qxd5 {[%clk 0:01:53]} 15. Qxd5 {[%clk 0:01:31]}  exd5 {[%clk 0:01:52]} 16. O-O-O {[%clk 0:01:31]}  Rd8 {[%clk 0:01:42]} 17. Ne2 {[%clk 0:01:31]}  Ne6 {[%clk 0:01:35]} 18. Nd4 {[%clk 0:01:25]}  Kd7 {[%clk 0:01:17]} 19. Rd2 {[%clk 0:00:59]}  Nxd4 {[%clk 0:01:12]} 20. Rxd4 {[%clk 0:00:58]}  Kc6 {[%clk 0:01:10]} 21. Re1 {[%clk 0:00:57]}  Rfe8 {[%clk 0:01:09]} 22. Rxe8 {[%clk 0:00:56]}  Rxe8 {[%clk 0:01:09]} 23. Kd2 {[%clk 0:00:56]}  Re5 {[%clk 0:01:03]} 24. Rf4 {[%clk 0:00:54]}  f6 {[%clk 0:00:59]} 25. a4 {[%clk 0:00:53]}  a5 {[%clk 0:00:47]} 1/2-1/2


[Site "https://www.chess.com"]

[Event "Titled Tuesday Blitz March 07 Early 2023"]
[White "Avazkhonov, Alikhon"]
[Black "Biriukov, Ilja"]
[WhiteFideId "14208504"]
[BlackFideId "4113373"]
[WhiteElo "1739"]
[BlackElo "2426"]
[Result "1-0"]
[Round "04"]
[TimeControl "180+2"]
[Date "2023.03.07"]
[WhiteClock "0:00:03"]
[BlackClock "0:00:03"]

1. d4 {[%clk 0:02:56]}  Nf6 {[%clk 0:02:58]} 2. c4 {[%clk 0:02:56]}  g6 {[%clk 0:02:58]} 3. Nc3 {[%clk 0:02:57]}  Bg7 {[%clk 0:02:58]} 4. e4 {[%clk 0:02:57]}  d6 {[%clk 0:02:59]} 5. f3 {[%clk 0:02:58]}  O-O {[%clk 0:02:57]} 6. Be3 {[%clk 0:02:59]}  e5 {[%clk 0:02:56]} 7. Nge2 {[%clk 0:02:56]}  Nbd7 {[%clk 0:02:54]} 8. Qd2 {[%clk 0:02:56]}  c6 {[%clk 0:02:51]} 9. O-O-O {[%clk 0:02:56]}  a6 {[%clk 0:02:44]} 10. g4 {[%clk 0:02:55]}  b5 {[%clk 0:02:40]} 11. Ng3 {[%clk 0:01:25]}  Rb8 {[%clk 0:02:32]} 12. g5 {[%clk 0:01:22]}  Ne8 {[%clk 0:02:27]} 13. h4 {[%clk 0:01:23]}  exd4 {[%clk 0:02:13]} 14. Bxd4 {[%clk 0:01:15]}  Ne5 {[%clk 0:02:11]} 15. Qf2 {[%clk 0:01:10]}  bxc4 {[%clk 0:02:03]} 16. f4 {[%clk 0:01:06]}  Ng4 {[%clk 0:01:51]} 17. Qf3 {[%clk 0:00:59]}  Bxd4 {[%clk 0:01:44]} 18. Rxd4 {[%clk 0:01:00]}  Qb6 {[%clk 0:01:43]} 19. Rd2 {[%clk 0:00:59]}  Qe3 {[%clk 0:01:27]} 20. Qxe3 {[%clk 0:00:50]}  Nxe3 {[%clk 0:01:27]} 21. h5 {[%clk 0:00:51]}  Nxf1 {[%clk 0:01:25]} 22. Rxf1 {[%clk 0:00:39]}  Bg4 {[%clk 0:01:21]} 23. h6 {[%clk 0:00:31]}  f5 {[%clk 0:01:15]} 24. e5 {[%clk 0:00:19]}  d5 {[%clk 0:01:11]} 25. Na4 {[%clk 0:00:15]}  Nc7 {[%clk 0:01:07]} 26. Nc5 {[%clk 0:00:13]}  Rbd8 {[%clk 0:00:57]} 27. e6 {[%clk 0:00:09]}  Rfe8 {[%clk 0:00:56]} 28. Re1 {[%clk 0:00:09]}  Re7 {[%clk 0:00:48]} 29. Kc2 {[%clk 0:00:04]}  Ne8 {[%clk 0:00:47]} 30. Kc3 {[%clk 0:00:04]}  Nd6 {[%clk 0:00:47]} 31. Nd7 {[%clk 0:00:03]}  Nb5+ {[%clk 0:00:40]} 32. Kc2 {[%clk 0:00:02]}  a5 {[%clk 0:00:32]} 33. Nf6+ {[%clk 0:00:03]}  Kh8 {[%clk 0:00:31]} 34. Nxg4 {[%clk 0:00:02]}  fxg4 {[%clk 0:00:30]} 35. f5 {[%clk 0:00:02]}  gxf5 {[%clk 0:00:22]} 36. Nxf5 {[%clk 0:00:03]}  Ree8 {[%clk 0:00:22]} 37. e7 {[%clk 0:00:04]}  Rd7 {[%clk 0:00:20]} 38. Rde2 {[%clk 0:00:04]}  Nd6 {[%clk 0:00:15]} 39. Ng7 {[%clk 0:00:04]}  Kg8 {[%clk 0:00:11]} 40. Re6 {[%clk 0:00:02]}  Kf7 {[%clk 0:00:07]} 41. Nxe8 {[%clk 0:00:02]}  Nxe8 {[%clk 0:00:05]} 42. Rxc6 {[%clk 0:00:02]}  Rxe7 {[%clk 0:00:05]} 43. Rxe7+ {[%clk 0:00:01]}  Kxe7 {[%clk 0:00:06]} 44. Ra6 {[%clk 0:00:02]}  Nd6 {[%clk 0:00:03]} 45. Ra7+ {[%clk 0:00:02]}  Ke6 {[%clk 0:00:04]} 46. Rxh7 {[%clk 0:00:03]}  g3 {[%clk 0:00:03]} 47. g6 {[%clk 0:00:01]}  g2 {[%clk 0:00:03]} 48. g7 {[%clk 0:00:02]}  g1=Q {[%clk 0:00:03]} 49. Rh8 {[%clk 0:00:02]}  Qf2+ {[%clk 0:00:02]} 50. Kc1 {[%clk 0:00:01]}  Qe1+ {[%clk 0:00:02]} 51. Kc2 {[%clk 0:00:02]}  Qe2+ {[%clk 0:00:03]} 52. Kc1 {[%clk 0:00:03]} 1-0


[Site "https://www.chess.com"]

[Event "Titled Tuesday Blitz March 07 Early 2023"]
[White "Mim, Akter"]
[Black "Tyagi, Kushan"]
[WhiteFideId "10263950"]
[BlackFideId "2040069"]
[WhiteElo "2212"]
[BlackElo "2355"]
[Result "1-0"]
[Round "04"]
[TimeControl "180+2"]
[Date "2023.03.07"]
[WhiteClock "0:00:30"]
[BlackClock "0:00:02"]

1. e4 {[%clk 0:03:00]}  c5 {[%clk 0:02:56]} 2. Nf3 {[%clk 0:03:01]}  e6 {[%clk 0:02:55]} 3. c3 {[%clk 0:03:01]}  Nf6 {[%clk 0:02:55]} 4. e5 {[%clk 0:03:00]}  Nd5 {[%clk 0:02:55]} 5. d4 {[%clk 0:03:01]}  cxd4 {[%clk 0:02:56]} 6. cxd4 {[%clk 0:03:02]}  b6 {[%clk 0:02:56]} 7. a3 {[%clk 0:03:02]}  Bb7 {[%clk 0:02:56]} 8. Bd3 {[%clk 0:03:02]}  Be7 {[%clk 0:02:55]} 9. O-O {[%clk 0:03:03]}  d6 {[%clk 0:02:55]} 10. Re1 {[%clk 0:03:03]}  Nd7 {[%clk 0:02:55]} 11. Nbd2 {[%clk 0:03:03]}  O-O {[%clk 0:02:53]} 12. Ne4 {[%clk 0:03:00]}  dxe5 {[%clk 0:02:53]} 13. dxe5 {[%clk 0:03:00]}  Nc5 {[%clk 0:02:49]} 14. Nxc5 {[%clk 0:02:57]}  bxc5 {[%clk 0:02:34]} 15. Qe2 {[%clk 0:02:43]}  Rc8 {[%clk 0:02:29]} 16. h4 {[%clk 0:02:35]}  Qc7 {[%clk 0:01:46]} 17. Bg5 {[%clk 0:02:22]}  c4 {[%clk 0:01:39]} 18. Bc2 {[%clk 0:02:21]}  c3 {[%clk 0:01:32]} 19. Bxe7 {[%clk 0:02:19]}  Qxe7 {[%clk 0:01:31]} 20. Bxh7+ {[%clk 0:02:14]}  Kxh7 {[%clk 0:01:22]} 21. Ng5+ {[%clk 0:02:15]}  Kg6 {[%clk 0:01:21]} 22. Qg4 {[%clk 0:02:01]}  f5 {[%clk 0:00:57]} 23. exf6 {[%clk 0:01:59]}  Nxf6 {[%clk 0:00:57]} 24. Qg3 {[%clk 0:01:08]}  cxb2 {[%clk 0:00:31]} 25. Rab1 {[%clk 0:01:07]}  Kh6 {[%clk 0:00:26]} 26. Nxe6 {[%clk 0:01:00]}  Qxe6 {[%clk 0:00:16]} 27. Rxe6 {[%clk 0:01:00]}  Rc1+ {[%clk 0:00:17]} 28. Re1 {[%clk 0:00:59]}  Rxe1+ {[%clk 0:00:15]} 29. Rxe1 {[%clk 0:00:59]}  Rc8 {[%clk 0:00:16]} 30. Qb3 {[%clk 0:00:50]}  Rc1 {[%clk 0:00:12]} 31. Qe3+ {[%clk 0:00:50]}  Kh7 {[%clk 0:00:12]} 32. Rxc1 {[%clk 0:00:50]}  bxc1=Q+ {[%clk 0:00:12]} 33. Qxc1 {[%clk 0:00:51]}  Be4 {[%clk 0:00:12]} 34. Qc7 {[%clk 0:00:51]}  a6 {[%clk 0:00:11]} 35. a4 {[%clk 0:00:50]}  Bd3 {[%clk 0:00:10]} 36. a5 {[%clk 0:00:49]}  Bb5 {[%clk 0:00:10]} 37. f3 {[%clk 0:00:48]}  Bd3 {[%clk 0:00:10]} 38. g4 {[%clk 0:00:48]}  Nd5 {[%clk 0:00:10]} 39. Qe5 {[%clk 0:00:47]}  Nf6 {[%clk 0:00:08]} 40. Kf2 {[%clk 0:00:47]}  Bb5 {[%clk 0:00:08]} 41. Kg3 {[%clk 0:00:47]}  Nd7 {[%clk 0:00:05]} 42. Qf5+ {[%clk 0:00:46]}  Kg8 {[%clk 0:00:05]} 43. h5 {[%clk 0:00:47]}  Nf8 {[%clk 0:00:04]} 44. g5 {[%clk 0:00:46]}  Bd7 {[%clk 0:00:03]} 45. Qd3 {[%clk 0:00:44]}  Bb5 {[%clk 0:00:03]} 46. Qd5+ {[%clk 0:00:45]}  Kh8 {[%clk 0:00:03]} 47. Qf7 {[%clk 0:00:41]}  Nd7 {[%clk 0:00:02]} 48. g6 {[%clk 0:00:35]}  Nf6 {[%clk 0:00:02]} 49. Qf8+ {[%clk 0:00:34]}  Ng8 {[%clk 0:00:02]} 50. Kf4 {[%clk 0:00:30]} 1-0


[Site "https://www.chess.com"]

[Event "Titled Tuesday Blitz March 07 Early 2023"]
[White "Mikhaylova, Irina"]
[Black "Mushini Ajay"]
[WhiteFideId "4109040"]
[BlackFideId "35066188"]
[WhiteElo "1966"]
[BlackElo "2145"]
[Result "1/2-1/2"]
[Round "04"]
[TimeControl "180+2"]
[Date "2023.03.07"]
[WhiteClock "0:02:54"]
[BlackClock "0:02:48"]

1. d4 {[%clk 0:03:00]}  Nf6 {[%clk 0:02:58]} 2. Nf3 {[%clk 0:03:01]}  d5 {[%clk 0:02:57]} 3. c4 {[%clk 0:03:01]}  c6 {[%clk 0:02:54]} 4. cxd5 {[%clk 0:03:01]}  cxd5 {[%clk 0:02:53]} 5. Nc3 {[%clk 0:03:02]}  Nc6 {[%clk 0:02:53]} 6. Bf4 {[%clk 0:03:02]}  Nh5 {[%clk 0:02:53]} 7. Bg5 {[%clk 0:03:02]}  h6 {[%clk 0:02:52]} 8. Bd2 {[%clk 0:02:57]}  Nf6 {[%clk 0:02:50]} 9. Bf4 {[%clk 0:02:56]}  Nh5 {[%clk 0:02:50]} 10. Bd2 {[%clk 0:02:56]}  Nf6 {[%clk 0:02:49]} 11. Bf4 {[%clk 0:02:56]}  Nh5 {[%clk 0:02:48]} 12. Bd2 {[%clk 0:02:54]} 1/2-1/2


[Site "https://www.chess.com"]